Cogmind - Beta 16.1 @@@ ROGUE MODE // 2026.03.10 @ 09:07:51 Player: Ragnakor Result: Destroyed by D-53 Grenadier with Mini Grenade Launcher Performance ------------- Evolutions (1) 500 Regions Visited (4) 800 Robots Destroyed (40) 200 Value Destroyed (851) 851 Prototype IDs (5) 100 Alien Tech Used (0) 0 Bonus (67) 67 TOTAL SCORE: 2518 Bonus ------- Follower Combat Kills 67 Cogmind --------- Core Integrity 0/400 Matter 300/300 Energy 58/100 System Corruption 5% Temperature Cool (0) Movement Core (100) Ox1 Location -9/Mines Parts ------- > --- POWER (1) -------- (None) > --- PROPULSION (3) --- (None) > --- UTILITY (3) ------ Heat Sink Small Storage Unit > --- WEAPON (2) ------- (None) > --- INVENTORY (8) ---- Light Ion Engine Aluminum Leg Compact Wheel Improved Medium Laser Peak State ------------ > --- POWER ------------ Ion Engine > --- PROPULSION ------- Aluminum Leg Aluminum Leg Aluminum Leg > --- UTILITY ---------- Heat Sink Small Storage Unit Improved Terrain Scanner > --- WEAPON ----------- Advanced Beam Cannon Advanced Beam Cannon > --- INVENTORY -------- Light Ion Engine Aluminum Leg Aluminum Leg Compact Wheel ECM Suite EM Pulse Gun Small Laser Advanced Beam Cannon [Rating: 16] Favorites ----------- Power Light Ion Engine Engine Light Ion Engine Propulsion Aluminum Leg Leg Aluminum Leg Utility Small Storage Unit Device Heat Sink Storage Small Storage Unit Weapon Advanced Beam Cannon Energy Gun Small Laser Energy Cannon Advanced Beam Cannon Launcher EMP Blaster Build | -11 -10 -10 -9 -9 ------- Run | Yrd Mat Min Mat Min Slots Evolved 2 | . . . 2 . Power . | . . . . . Propulsion 1 | . . . 1 . Utility 1 | . . . 1 . Weapon . | . . . . . Parts Attached 32 | 7 4 2 12 7 Power 8 | 1 2 . 3 2 Engine 8 | 1 2 . 3 2 Core . | . . . . . Reactor . | . . . . . Propulsion 8 | 2 1 2 3 . Treads . | . . . . . Leg 8 | 2 1 2 3 . Wheel . | . . . . . Hover . | . . . . . Flight . | . . . . . Utility 6 | 2 1 . 2 1 Device 4 | 1 1 . 1 1 Storage 2 | 1 . . 1 . Processor . | . . . . . Hackware . | . . . . . Protection . | . . . . . Artifact . | . . . . . Weapon 10 | 2 . . 4 4 Energy Gun 6 | 2 . . 2 2 Energy Cannon 3 | . . . 2 1 Ballistic Gun . | . . . . . Ballistic Cannon . | . . . . . Launcher 1 | . . . . 1 Special Weapon . | . . . . . Impact Weapon . | . . . . . Slashing Weapon . | . . . . . Piercing Weapon . | . . . . . Special Melee Weapon . | . . . . . Unidentified Prototypes 3 | . . . 3 . Parts Lost 14 | . 1 . 1 12 Power 3 | . . . 1 2 Propulsion 4 | . . . . 4 Utility 2 | . 1 . . 1 Weapon 5 | . . . . 5 Highest Loss Streak 11 | . 1 . 1 11 To Critical Strikes 2 | . . . . 2 Average Backups 7 | 3 7 7 7 7 Power 1 | . 1 2 1 1 Propulsion 2 | 1 2 2 2 2 Utility . | . . 1 . . Weapon 2 | . 1 2 3 3 Tool/Special . | . . . . . Unused Backups 7 | . 1 1 4 1 Power . | . . . . . Propulsion 2 | . . 1 . 1 Utility 2 | . 1 . 1 . Weapon 3 | . . . 3 . Tool/Special . | . . . . . Average Slot Usage (%) 97 | . 99 100 97 92 Engine 12 | . 14 14 10 10 Leg 30 | . 28 28 33 29 Device 17 | . 13 14 19 19 Storage 12 | . 14 14 11 11 Energy Gun 15 | . 28 28 6 12 Energy Cannon 8 | . . . 15 7 Peak Build Rating 16 | 9 9 7 16 16 Average Rating 10 | 6 7 7 13 13 On Entrance 7 | . 9 7 7 16 Avg Prop Armor Cover (%) . | . . . . . Naked Turns . | . . . . . Heaviest Build 20 | 12 12 12 20 19 Greatest Support 30 | 20 20 20 30 30 Greatest Overweight (x) 3 | . . . . 3 Average Overweight (x) . | . . . . . Largest Inventory Capacity 20 | 8 8 8 20 8 Average Capacity 7 | 7 8 8 8 8 Most Carried 8 | 4 8 8 8 8 Average Carried 7 | 3 7 7 7 7 Final Capacity 8 | 8 8 8 8 8 Final Carried 8 | 4 8 8 8 4 Class Distribution -------------------- 51% | Mutant 48% | Scavenger-Mutant Dominant Class ---------------- Mutant | -10/Materials Mutant | -10/Mines Scavenger-Mutant | -9/Materials Scavenger-Mutant | -9/Mines Resources | -11 -10 -10 -9 -9 ----------- Run | Yrd Mat Min Mat Min Matter Collected 588 | 270 40 30 183 65 Remotely . | . . . . . Salvage Created 1383 | 157 305 39 668 214 Parts 85 | 14 17 4 40 10 Haulers Intercepted 4 | . 1 . 3 . Recyclers Shooed 1 | 1 . . . . Parts Field Recycled . | . . . . . Retrieved Matter . | . . . . . Parts Self-Destructed . | . . . . . Prevented . | . . . . . Parts Restored . | . . . . . Kills | -11 -10 -10 -9 -9 ------- Run | Yrd Mat Min Mat Min Combat Hostiles Destroyed 28 | . 5 2 13 8 Guns 14 | . 4 2 2 6 Cannons 13 | . . . 11 2 Classes Destroyed 10 | 2 4 1 1 2 Worker 1 | . . . . 1 Builder 1 | . 1 . . . Tunneler 5 | 4 . . 1 . Hauler 4 | . 1 . 3 . Recycler 1 | 1 . . . . Watcher 2 | . 2 . . . Swarmer 8 | . . 2 3 3 Grunt 15 | . 5 . 7 3 Sentry 3 | . . . 3 . Assembled 2 | . . . . 2 Best Kill Streak 6 | 5 5 2 6 4 Combat Bots Only 5 | . 4 2 5 3 Max Kills in Single Turn 2 | 1 1 1 2 1 Gunslinging . | . . . . . Exploded . | . . . . . Melee . | . . . . . Uniques/NPCs Destroyed . | . . . . . Combat | -11 -10 -10 -9 -9 -------- Run | Yrd Mat Min Mat Min Hostile Shots Fired 149 | . 33 5 42 69 Missed 35 | . 11 1 11 12 Hits 114 | . 22 4 31 57 Melee 6 | . . . . 6 Projectile 108 | . 22 4 31 51 AOE 17 | . . . . 17 Critical Strikes 4 | . . . 1 3 Damage Taken 1926 | . 270 37 355 1264 Core 455 | . 53 . 51 351 Absorbed by Shields . | . . . . . Regen/Repaired (Parts) 67 | . . . 67 . Core Remaining (%) 89 | 100 . 78 . . Volleys Fired 101 | 10 31 3 39 18 Largest 2 | 2 2 2 2 2 Hottest 136 | 90 90 90 136 136 Shots Fired 196 | 20 61 6 74 35 Gun 133 | 20 61 6 26 20 Cannon 63 | . . . 48 15 Launcher . | . . . . . Special . | . . . . . Kinetic . | . . . . . Thermal 187 | 20 61 6 74 26 Explosive . | . . . . . Electromagnetic 9 | . . . . 9 Robot Hit Streak 12 | 7 8 1 12 3 Robot Miss Streak 9 | 3 5 3 2 9 Penetration Max . | . . . . . Secondary Targets 1 | . . . . 1 Max Gunslinging Chain 1 | . . . . 1 Shots Hit Robots 111 | 13 34 2 46 16 Core Hits 53 | 6 14 2 21 10 Critical Kills . | . . . . . Critical Parts Destroyed . | . . . . . Critical Strikes 5 | 1 2 . 1 1 Burn 5 | 1 2 . 1 1 Melee Attacks . | . . . . . Impact . | . . . . . Slashing . | . . . . . Piercing . | . . . . . Sneak Attacks . | . . . . . Combat Hostiles . | . . . . . Follow-up Attacks . | . . . . . Damage Inflicted 1786 | 174 392 21 870 329 Guns 943 | 174 389 21 212 147 Cannons 840 | . . . 658 182 Explosions . | . . . . . Melee . | . . . . . Ramming 3 | . 3 . . . Kinetic . | . . . . . Thermal 1719 | 174 389 21 870 265 Explosive . | . . . . . Electromagnetic 64 | . . . . 64 Impact . | . . . . . Slashing . | . . . . . Piercing . | . . . . . Highest Corruption 5 | . . . 3 5 Average Corruption 2 | . . . 2 3 Corruption Purged . | . . . . . Corruption Blocked . | . . . . . Effects 12 | . . . 8 4 Message Errors 4 | . . . 1 3 Matter Fused 3 | . . . 3 . Energy Discharges 1 | . . . . 1 Parts Rejected 1 | . . . 1 . Parts Fused 1 | . . . 1 . Weapon Failures 2 | . . . 2 . Overload Shots . | . . . . . Overflow Damage 12 | . . . 12 . Projectiles 12 | . . . 12 . Explosions . | . . . . . Melee . | . . . . . Knockbacks . | . . . . . Impact . | . . . . . Kinetic . | . . . . . Secondary . | . . . . . Self-Inflicted Damage . | . . . . . Shots . | . . . . . Rammed . | . . . . . Targets Rammed 1 | . 1 . . . Kicked 1 | . 1 . . . Crushed . | . . . . . Highest Temperature 334 | 178 282 . 264 334 Average Temperature 112 | 88 151 . 77 146 Received Heat Transfer 491 | . 135 . 177 179 Effects 3 | . 2 . . 1 Shutdowns 1 | . . . . 1 Energy Bleed 2 | . 2 . . . Siege Activations . | . . . . . Martial Activations . | . . . . . Shielding Activations . | . . . . . Robots Disrupted . | . . . . . Combat Hostiles . | . . . . . Robots Corrupted . | . . . . . Combat Hostiles . | . . . . . Parts Fried . | . . . . . Impact Corruptions . | . . . . . Robots Melted 1 | . 1 . . . Combat Hostiles 1 | . 1 . . . Parts Melted 10 | 2 5 1 1 1 Heat Transferred 4192 | 533 1213 50 1804 592 Parts Sabotaged . | . . . . . Parts Stolen . | . . . . . Parts Stripped . | . . . . . Power Chain Reactions . | . . . . . Alert | -11 -10 -10 -9 -9 ------- Run | Yrd Mat Min Mat Min Maximum Alert Level . | . . . . . Low Security (%) 100 | 100 100 100 100 100 Level 1 . | . . . . . Level 2 . | . . . . . Level 3 . | . . . . . Level 4 . | . . . . . Level 5 . | . . . . . High Security . | . . . . . Max Security . | . . . . . Peak Influence 195 | 10 92 107 195 131 Initial 46 | . . . 37 46 Average 60 | 1 28 53 96 66 Influence Increases 815 | 25 154 127 364 145 Destroy 0b10 Robot/C 580 | . 100 100 260 120 Destroy 0b10 Robot/NC 70 | 25 20 . 20 5 Destroy Leader 132 | . 26 20 66 20 Allied During Kill 9 | . . 7 2 . Successful Hack 22 | . 8 . 14 . Destroy Structure 2 | . . . 2 . Influence Decreases 815 | 25 154 30 342 264 Entered New Map 133 | . . . 60 73 Time Decay 551 | 25 144 30 272 80 Lost Part 131 | . 10 . 10 111 Squads Dispatched 2 | . 1 . 1 . Investigation . | . . . . . Extermination . | . . . . . Reinforcement 2 | . 1 . 1 . Assault . | . . . . . Garrison . | . . . . . Intercept . | . . . . . Searches Triggered . | . . . . . Construction Impeded . | . . . . . Haulers Reinforced . | . . . . . Active Scanning Responses . | . . . . . Cargo Convoy Interrupts . | . . . . . Stealth | -11 -10 -10 -9 -9 --------- Run | Yrd Mat Min Mat Min Distress Signals 1 | . . . 1 . Communications Jammed . | . . . . . Distress Signals . | . . . . . Times Spotted 59 | . 11 4 15 29 Peak Tracking Total 17 | . 3 1 4 17 Tactical Retreats 1 | . . . . 1 Traps | -11 -10 -10 -9 -9 ------- Run | Yrd Mat Min Mat Min Traps Triggered 2 | . 1 . 1 . Indirectly . | . . . . . Trap Hack Attempts . | . . . . . Triggered . | . . . . . Disarmed . | . . . . . Reprogrammed . | . . . . . Reused . | . . . . . Traps Extracted . | . . . . . Installed . | . . . . . Triggered . | . . . . . Machines | -11 -10 -10 -9 -9 ---------- Run | Yrd Mat Min Mat Min Machines Disabled . | . . . . . Max in Single Turn . | . . . . . Machines Repaired . | . . . . . Machines Dismantled . | . . . . . Machines Sabotaged . | . . . . . Overloaded Fab Kills . | . . . . . Hacking | -11 -10 -10 -9 -9 --------- Run | Yrd Mat Min Mat Min Machines Accessed 7 | . 1 . 6 . Terminals 5 | . 1 . 4 . Fabricators . | . . . . . Repair Stations 1 | . . . 1 . Recycling Units . | . . . . . Scanalyzers 1 | . . . 1 . Garrison Access . | . . . . . Total Hacks 27 | . 3 . 24 . Successful 15 | . 1 . 14 . Failed 11 | . 2 . 9 . Catastrophic 2 | . 1 . 1 . Database Lockouts 1 | . . . 1 . Manual . | . . . . . Terminals 20 | . 3 . 17 . Fabricators . | . . . . . Repair Stations 2 | . . . 2 . Recycling Units . | . . . . . Scanalyzers 5 | . . . 5 . Garrison Access . | . . . . . Terminal Hacks 9 | . 1 . 8 . Prototype ID Bank 1 | . . . 1 . Level Access Points 1 | . 1 . . . Emergency Access Points 2 | . . . 2 . Alert Level 1 | . . . 1 . Dispatch Records 1 | . . . 1 . Maintenance Status 1 | . . . 1 . Hauler Manifests 1 | . . . 1 . Zone Layout 1 | . . . 1 . Fabricator Hacks . | . . . . . Repair Station Hacks 2 | . . . 2 . Scan Component 1 | . . . 1 . Repair 1 | . . . 1 . Recycling Unit Hacks . | . . . . . Scanalyzer 4 | . . . 4 . Insert Component 1 | . . . 1 . Analyze 1 | . . . 1 . Retrieve Study 2 | . . . 2 . Garrison Access Hacks . | . . . . . Unauthorized Hacks . | . . . . . Terminals . | . . . . . Fabricators . | . . . . . Repair Stations . | . . . . . Recycling Units . | . . . . . Scanalyzers . | . . . . . Garrison Access . | . . . . . Data Cores Recovered . | . . . . . Used . | . . . . . Hacking Detections 6 | . 1 . 5 . Full Trace Events 1 | . . . 1 . Feedback Events 1 | . . . 1 . Corruption 1 | . . . 1 . Feedback Blocked . | . . . . . Robot Schematics Acquired . | . . . . . Robots Built . | . . . . . Authchips . | . . . . . Time . | . . . . . Total Robot Build Rating . | . . . . . Part Schematics Acquired 1 | . . . 1 . Parts Built . | . . . . . Authchips . | . . . . . Time . | . . . . . Total Part Build Rating . | . . . . . Part Studies Acquired 2 | . . . 2 . Parts Repaired 1 | . . . 1 . Time 26 | . . . 26 . Parts Recycled . | . . . . . Recycled Matter . | . . . . . Retrieved Matter . | . . . . . Retrieved Components . | . . . . . Parts Scanalyzed 1 | . . . 1 . Part Schematics Acquired 1 | . . . 1 . Parts Damaged . | . . . . . Bothacking | -11 -10 -10 -9 -9 ------------ Run | Yrd Mat Min Mat Min Used RIF Installer . | . . . . . Robots Hacked . | . . . . . Non-combat . | . . . . . Combat . | . . . . . Robot Hacks Applied . | . . . . . Relay Couplers Released . | . . . . . Fabnet Peak Effective % . | . . . . . Robots Rewired . | . . . . . Allies Hacked . | . . . . . Hacks Repelled . | . . . . . Allies | -11 -10 -10 -9 -9 -------- Run | Yrd Mat Min Mat Min Total Allies 1 | . . 1 . . Largest Group 1 | . . 1 1 . Highest-Rated Group 31 | . . 31 31 . Highest-Rated Ally 31 | . . 31 31 . Total Orders . | . . . . . Ally Attacks 10 | . . 10 . . Total Damage 102 | . . 102 . . Kills 3 | . . 3 . . Allies Corrupted . | . . . . . Allies Melted . | . . . . . Intel | -11 -10 -10 -9 -9 ------- Run | Yrd Mat Min Mat Min Active Infowar (turns) 815 | 45 134 . 502 134 Terrain 815 | 45 134 . 502 134 Robot Analysis Total . | . . . . . Derelict Logs Recovered . | . . . . . Drone Launches . | . . . . . Drone Recoveries . | . . . . . Exploration | -11 -10 -10 -9 -9 ------------- Run | Yrd Mat Min Mat Min Turns Passed 1502 | 152 434 110 636 170 Spaces Moved 886 | 93 267 74 370 82 Core 7 | 5 . . . 2 Treads . | . . . . . Legs 879 | 88 267 74 370 80 Wheels . | . . . . . Hover . | . . . . . Flight . | . . . . . Fastest Speed 50 | 50 120 120 105 105 Average Speed 116 | 116 120 120 114 107 Slowest Speed 200 | 120 120 120 120 200 Overloaded Moves . | . . . . . Propulsion Burnouts . | . . . . . Robots Hopped . | . . . . . Potential Cave-ins 4 | . . . . 4 Cave-ins Triggered . | . . . . . Exploration Rate (%) 26 | 4 44 23 38 25 Regions Visited 4 Branch Regions 2 Pre-discovered Areas . | . . . . . Known Exits Taken 1 | . . 1 . . Unknown Exits Taken 3 | 1 1 . 1 . Scrap Searched . | . . . . . Spaces Dug . | . . . . . Terrain Destroyed . | . . . . . Melee . | . . . . . Projectile . | . . . . . AOE . | . . . . . Terrain Rammed . | . . . . . Walls Destroyed . | . . . . . Machines Disabled . | . . . . . Actions | -11 -10 -10 -9 -9 --------- Run | Yrd Mat Min Mat Min Total 1156 | 113 319 90 507 127 Wait 99 | . 9 8 66 16 Move 882 | 92 266 73 369 82 Hop . | . . . . . Pick Up 16 | 4 5 1 6 . Fast Attach 8 | 7 . . 1 . Attach 11 | . 1 . 5 5 Detach 1 | . . . 1 . Swap 22 | . 4 2 11 5 Drop 15 | . 2 3 9 1 Fire 101 | 10 31 3 39 18 Melee . | . . . . . Ram . | . . . . . Kick 1 | . 1 . . . Crush . | . . . . . Escape Stasis . | . . . . . Rewire . | . . . . . Trap . | . . . . . Miscellaneous . | . . . . . Route ------- -11/Scrapyard -10/Materials (discovered 4 exits: *Mat x3 / [*Min]) -10/Mines (discovered 2 exits: *Mat x2) -9/Materials -9/Mines History --------- Turn | Location | Event 5 | -11/Scrapyard | Discovered new exit (range 15) 153 | -11/Scrapyard | Entered Materials 313 | -10/Materials | Build established: Mutant 354 | -10/Materials | Discovered new exit (range 10) 428 | -10/Materials | Identified exit to Materials 575 | -10/Materials | Discovered new exit (range 6) 587 | -10/Materials | Entered Mines 590 | -10/Mines | Received a Mining Laser from a helpful Derelict 671 | -10/Mines | Discovered exit to Materials (range 11) 685 | -10/Mines | Discovered exit to Materials (range 14) 697 | -10/Mines | Entered Materials 697 | -9/Materials | Accompanied by 1 ally 697 | -9/Materials | Evolved 2 slots: Propulsion x1, Utility x1 1059 | -9/Materials | Build established: Scavenger-Mutant 1156 | -9/Materials | Repaired Aluminum Leg 1174 | -9/Materials | Central database locked down 1292 | -9/Materials | Discovered new exit (range 10) 1333 | -9/Materials | Entered Mines 1446 | -9/Mines | Assembled infested the area 1451 | -9/Mines | Assisted by a Guerilla fighting off Assembled 1486 | -9/Mines | Core integrity fell below 50% 1500 | -9/Mines | Core integrity fell below 20% 1503 | -9/Mines | Destroyed by D-53 Grenadier with Mini Grenade Launcher Last Messages --------------- 01484_ as-75775 destroyed. 01485_ EMP Blaster destroyed. 01485_ as-57143 destroyed. 01486_ The unstable cave ceiling collapses. 01488_ as-91543 destroyed. 01488_ as-35654 destroyed. 01489_ The unstable cave ceiling collapses. 01491_ as-37458 destroyed. 01491_ Lgt. Ion Engine destroyed. 01494_ The unstable cave ceiling collapses. 01495_ as-21105 destroyed. 01495_ Aluminum Leg+ destroyed. 01496_ as-17008 destroyed. 01497_ as-77678 destroyed. 01498_ The unstable cave ceiling collapses. 01498_ Adv. Beam Cannon destroyed. 01499_ Aluminum Leg+ destroyed. 01500_ The unstable cave ceiling collapses. 01502_ Adv. Beam Cannon destroyed. 01503_ The unstable cave ceiling collapses. Map ----- +----------------------------------------------------+ | ?????????????????????????????????????????????????? | | ?????????????????????????????????????????????????? | | ?????????????????????????????????????????????????? | | ?????????????????????????????????????????????????? | | ?????????????????????????????????????????????????? | | ?????????????????????????????????????????????????? | | ?????????????????????????????????????????????????? | | ?????????????????????????????????????????????????? | | ?????????????????????????????????????????????????? | | ?????????????????????????????????????????????????? | | ?????????????????????????????????????????????????? | | ?????????????????????????????????????????????????? | | ?????????????????????????????????????????????????? | | ?????????????????????????????????????????????????? | | ?????????????????????????????????????????????????? | | ???????????????#?????????????????????????????????? | | ???????????????# ????????????????????????????????? | | ???????????????# ????????????????????????????????? | | ???????????????# ????????????????????????????????? | | ?????????????#?# ####????????????????????????????? | | ?????#????????## #######??????????????????????? | | ????#?????????# < ####???????????????????? | | ??????????????# #???????????????????? | | ???????????????# #???????????????????? | | ????#???##?????## #%%#????????????????? | | ??????? #????# # @ $ =%%#????????????????? | | ##?##???# #??### ##[#????????????????? | | #?????# #??# # # #???????????????????? | | #?????# #?## #???????????????????? | | #???#?# #?# # ##???????????????????? | | #?????# #?# # ; ###????????????????????? | | #?????# # ###??????????????????????? | | #?##### dd ##???????????????????????? | | =### " #???????????????????????? | | % % =%" #???????????????????????? | | # %##[#### # ##???????????????????????? | | # ## ##?# ##????????????????????????? | | # ## #??##?# ####?????????????????????????? | | %% ## #??????# ######????????????????????????????? | | # ## #??????????????????????????????????????????? | | # #??????????????????????????????????????????? | | # #???????????#?????????????????????????????? | | # #?????????????????????????????????????????? | | ## #??????????????? ?????????????????????????? | | ?## #?????????????????????????????????????????? | | ???# #????????????????????????????????????????? | | ????# #???????????????????????????????????????? | | ?????# ?????????????? ????????????????????????? | | ?????? #??????????????????????????????????????? | | ????#? ##??????????????????????????????????????? | +----------------------------------------------------+ Best States ------------- Heat Dissipation 38 Energy Generation 12 Energy Capacity 250 Matter Stores 300 Matter Capacity 300 Sight Range 16 Terrain Scan Range 16 Terrain Scan Density 10 Evasion (%) 55 Item Schematics ----------------- Aluminum Leg | -9/Materials | Scanalyzed Robot Schematics ------------------ None Fabricated ------------ Nothing Repaired ---------- Aluminum Leg | 25% | -9/Materials Studied --------- Aluminum Leg | -9/Materials | Hacked Ion Engine | -9/Materials | Hacked Alien Tech Used ----------------- None Achievements -------------- None Challenges ------------ None Game ------ Seed IntegrityBorgPlating Manual? 0 Play Time 00:18:04 Cumulative 13.0 hours Start 2026.03.10 @ 08:44:47 End 2026.03.10 @ 09:07:51 Sessions 1 Manual Loads 0 Difficulty Rogue Special Mode None Game No. 23 Rogue 23 Adventurer 0 Explorer 0 Win Type - Total 0 Types 0/0/0/0/0/0/0/0/0/0 Lore% 21 Gallery% 16 Achievement% 14 Wizard Run 0 Options --------- Layout 1 ASCII 0 Keyboard 0 Movement Numpad Keybinds 0 Fullscreen 1 Font 24/Smallcaps Map View 50x35 Zoom Use 0% Tactical HUD 1 Map Filters NONE Filters NONE Steam 1 RUN: a8aaa155-06b4-485a-a894-7f09fd470b2f